fUSD/lending_fUSD_20260614
["ID","MTS","AMOUNT","RATE_DAILY","PERIOD"]
[425001975,1781404253000,-623.86,0.00027671,8]
[425001976,1781404253000,-500.0,0.00027671,8]
[425001973,1781404253000,-500.0,0.00027671,8]
[425001974,1781404253000,-1993.92,0.00027671,8]
[425001978,1781404253000,-500.0,0.00027671,8]
[425001919,1781404253000,-3775.64,0.00027671,8]
[425001971,1781404253000,-500.0,0.00027671,8]
[425001977,1781404253000,-500.0,0.00027671,8]
[425001980,1781404253000,-500.0,0.00027671,8]
[425001979,1781404253000,-500.0,0.00027671,8]
[425001982,1781404253000,-500.0,0.00027671,8]
[425001981,1781404253000,-758.27,0.00027671,8]
[425001970,1781404253000,-500.0,0.00027671,8]
[425001953,1781404253000,-500.0,0.00027671,8]
[425001972,1781404253000,-500.0,0.00027671,8]
[425001952,1781404253000,-500.0,0.00027671,8]
[425001951,1781404253000,-500.0,0.00027671,8]
[425001926,1781404253000,-500.0,0.00027671,8]
[425001935,1781404253000,-500.0,0.00027671,8]
[425001928,1781404253000,-807.1,0.00027671,8]
[425001927,1781404253000,-500.0,0.00027671,8]
[425001933,1781404253000,-1065.7,0.00027671,8]
[425001925,1781404253000,-500.0,0.00027671,8]
[425001930,1781404253000,-1601.4,0.00027671,8]
[425001931,1781404253000,-500.0,0.00027671,8]
[425001934,1781404253000,-447.87170162,0.00027671,8]
[425001929,1781404253000,-500.0,0.00027671,8]
[425001936,1781404253000,-500.0,0.00027671,8]
[425001937,1781404253000,-654.73,0.00027671,8]
[425001932,1781404253000,-500.0,0.00027671,8]
[425001940,1781404253000,-500.0,0.00027671,8]
[425001938,1781404253000,-500.0,0.00027671,8]
[425001954,1781404253000,-500.0,0.00027671,8]
[425001948,1781404253000,-500.0,0.00027671,8]
[425001949,1781404253000,-500.0,0.00027671,8]
[425001947,1781404253000,-611.86,0.00027671,8]
[425001944,1781404253000,-500.0,0.00027671,8]
[425001950,1781404253000,-881.38,0.00027671,8]
[425001946,1781404253000,-500.0,0.00027671,8]
[425001943,1781404253000,-500.0,0.00027671,8]
[425001939,1781404253000,-500.0,0.00027671,8]
[425001941,1781404253000,-831.96,0.00027671,8]
[425001942,1781404253000,-500.0,0.00027671,8]
[425001945,1781404253000,-500.0,0.00027671,8]
[425002007,1781404254000,-500.0,0.00027671,8]
[425002013,1781404254000,-500.0,0.00027671,8]
[425002012,1781404254000,-500.0,0.00027671,8]
[425002011,1781404254000,-1571.37,0.00027671,8]
[425002008,1781404254000,-500.0,0.00027671,8]
[425002014,1781404254000,-2318.09,0.00027671,8]
[425002015,1781404254000,-1853.9,0.00027671,8]
[425002009,1781404254000,-500.0,0.00027671,8]
[425002010,1781404254000,-500.0,0.00027671,8]
[425002022,1781404254000,-500.0,0.00027671,8]
[425002020,1781404254000,-500.0,0.00027671,8]
[425002024,1781404254000,-500.0,0.00027671,8]
[425002019,1781404254000,-601.32,0.00027671,8]
[425002026,1781404254000,-715.56,0.00027671,8]
[425002023,1781404254000,-5293.57,0.00027671,8]
[425002018,1781404254000,-500.0,0.00027671,8]
[425002021,1781404254000,-2032.71,0.00027671,8]
[425002027,1781404254000,-806.02,0.00027671,8]
[425002025,1781404254000,-500.0,0.00027671,8]
[425002017,1781404254000,-240.7472994,0.00027671,8]
[425002016,1781404254000,-355.6427006,0.00027671,8]
[425001987,1781404254000,-605.69919557,0.00027671,8]
[425002003,1781404254000,-1218.61,0.00027671,8]
[425001992,1781404254000,-500.0,0.00027671,8]
[425001983,1781404254000,-500.0,0.00027671,8]
[425001984,1781404254000,-500.0,0.00027671,8]
[425001985,1781404254000,-500.0,0.00027671,8]
[425001989,1781404254000,-618.52,0.00027671,8]
[425001988,1781404254000,-500.0,0.00027671,8]
[425001991,1781404254000,-611.76,0.00027671,8]
[425001986,1781404254000,-500.0,0.00027671,8]
[425001990,1781404254000,-500.0,0.00027671,8]
[425002006,1781404254000,-672.18,0.00027671,8]
[425001993,1781404254000,-500.0,0.00027671,8]
[425001995,1781404254000,-500.0,0.00027671,8]
[425001994,1781404254000,-500.0,0.00027671,8]
[425001999,1781404254000,-642.27,0.00027671,8]
[425001997,1781404254000,-500.0,0.00027671,8]
[425002004,1781404254000,-500.0,0.00027671,8]
[425002002,1781404254000,-556.47,0.00027671,8]
[425001998,1781404254000,-500.0,0.00027671,8]
[425002000,1781404254000,-500.0,0.00027671,8]
[425002001,1781404254000,-822.57,0.00027671,8]
[425001996,1781404254000,-500.0,0.00027671,8]
[425002029,1781404254000,-598.23,0.00027671,8]
[425002005,1781404254000,-640.15,0.00027671,8]
[425002028,1781404254000,-6208.85,0.00027671,8]
[425002056,1781404254000,-394.05776217,0.00027671,8]
[425002051,1781404254000,-228.40813783,0.00027671,8]
[425002057,1781404254000,-105.94223783,0.00027671,8]
[425002059,1781404254000,-151.0,0.00027671,7]
[425002058,1781404254000,-151.0,0.00027671,7]
[425002061,1781404254000,-500.0,0.00027671,8]
[425002060,1781404254000,-170.12520114,0.00027671,8]
[425002063,1781404254000,-500.0,0.00027671,8]
[425002064,1781404254000,-525.12049809,0.00027671,8]
[425002054,1781404254000,-500.0,0.00027671,8]
[425002067,1781404254000,-1807.84,0.00027671,8]
[425002068,1781404254000,-1182.06,0.00027671,8]
[425002070,1781404254000,-1703.24,0.00027671,8]
[425002065,1781404254000,-142.05950191,0.00027671,8]
[425002073,1781404254000,-500.0,0.00027671,8]
[425002071,1781404254000,-1191.54,0.00027671,8]
[425002072,1781404254000,-9204.39,0.00027671,8]
[425002074,1781404254000,-289.36626262,0.00027671,8]
[425002069,1781404254000,-2493.12,0.00027671,8]
[425002039,1781404254000,-505.49,0.00027671,8]
[425002066,1781404254000,-594.3,0.00027671,8]
[425002053,1781404254000,-1084.28,0.00027671,8]
[425002062,1781404254000,-500.0,0.00027671,8]
[425002052,1781404254000,-151.0,0.00027671,7]
[425002033,1781404254000,-500.0,0.00027671,8]
[425002030,1781404254000,-3182.45,0.00027671,8]
[425002037,1781404254000,-1173.49,0.00027671,8]
[425002055,1781404254000,-151.0,0.00027671,7]
[425002035,1781404254000,-631.39,0.00027671,8]
[425002031,1781404254000,-500.0,0.00027671,8]
[425002034,1781404254000,-500.0,0.00027671,8]
[425002032,1781404254000,-615.67,0.00027671,8]
[425002036,1781404254000,-1261.18,0.00027671,8]
[425002044,1781404254000,-151.0,0.00027671,7]
[425002038,1781404254000,-500.0,0.00027671,8]
[425002047,1781404254000,-500.0,0.00027671,8]
[425002042,1781404254000,-500.0,0.00027671,8]
[425002041,1781404254000,-790.06,0.00027671,8]
[425002043,1781404254000,-398.12145673,0.00027671,8]
[425002050,1781404254000,-271.59186217,0.00027671,8]
[425002040,1781404254000,-500.0,0.00027671,8]
[425002046,1781404254000,-675.41,0.00027671,8]
[425002045,1781404254000,-151.0,0.00027671,7]
[425002049,1781404254000,-132.65043396,0.00027671,8]
[425002048,1781404254000,-1428.89956604,0.00027671,8]
[425002079,1781404953000,20655.83459696,0.0001,2]
[425002082,1781405133000,-585.04416311,0.000152,2]
[425002084,1781405240000,-160.0,0.00015202,2]
[425002086,1781405240000,-334.36924436,0.00016436,2]
[425002085,1781405240000,-521.31461175,0.00016436,2]
[425002088,1781405243000,-238.54455474,0.00016436,2]
[425002087,1781405243000,-227.2335542,0.00016436,2]
[425002097,1781405431000,-1316.94401837,0.0001672,2]
[425002090,1781405431000,-774.70827935,0.000152,2]
[425002094,1781405431000,-85.91478191,0.00016719,2]
[425002091,1781405431000,-164.38997707,0.00016435,2]
[425002089,1781405431000,-835.29172065,0.000152,2]
[425002093,1781405431000,-328.1,0.00016438,2]
[425002092,1781405431000,-269.44459608,0.00016435,2]
[425002095,1781405431000,-214.08521809,0.00016719,2]
[425002096,1781405431000,-70.51642093,0.0001672,2]
[425002098,1781405431000,-300.0,0.0001672,2]
[425002100,1781405431000,-151.0,0.00017191,2]
[425002099,1781405431000,-1500.0,0.00017168,2]
[425002106,1781405431000,-507.05267366,0.00017716,2]
[425002105,1781405431000,-714.83489044,0.00017716,2]
[425002101,1781405431000,-151.0,0.00017191,2]
[425002107,1781405431000,-333.6124359,0.00017716,2]
[425002104,1781405431000,-209.65772634,0.00017535,7]
[425002102,1781405431000,-151.0,0.00017191,2]
[425002103,1781405431000,-150.0,0.00017535,7]
[425002140,1781405432000,-1076.96424515,0.0002,2]
[425002131,1781405432000,-167.87043464,0.0002,2]
[425002132,1781405432000,-292.0,0.0002,2]
[425002135,1781405432000,-190.45740728,0.0002,2]
[425002136,1781405432000,-190.45740728,0.0002,2]
[425002138,1781405432000,-190.45740729,0.0002,2]
[425002128,1781405432000,-498.8,0.0001995,2]
[425002139,1781405432000,-153.0,0.0002,2]
[425002142,1781405432000,-343.0,0.0002,2]
[425002146,1781405432000,-162.07093311,0.00020342,2]
[425002141,1781405432000,-533.03575485,0.0002,2]
[425002144,1781405432000,-218.90153886,0.0002,2]
[425002134,1781405432000,-190.45740728,0.0002,2]
[425002145,1781405432000,-408.0,0.00020128,2]
[425002147,1781405432000,-250.92906689,0.00020342,2]
[425002149,1781405432000,-178.05757413,0.00020381,2]
[425002148,1781405432000,-150.04242587,0.00020381,2]
[425002150,1781405432000,-1325.08835026,0.00020456,2]
[425002153,1781405432000,-212.0,0.00021,2]
[425002151,1781405432000,-540.2765363,0.00020456,2]
[425002143,1781405432000,-154.09846114,0.0002,2]
[425002137,1781405432000,-190.45740728,0.0002,2]
[425002123,1781405432000,-607.7509345,0.00019339,7]
[425002129,1781405432000,-153.0,0.00019999,2]
[425002155,1781405432000,-153.0,0.00021,2]
[425002108,1781405432000,-204.61337091,0.00017737,2]
[425002109,1781405432000,-350.0,0.00017808,2]
[425002110,1781405432000,-617.95000512,0.00018264,2]
[425002114,1781405432000,-150.0,0.00018566,7]
[425002113,1781405432000,-150.0,0.00018566,7]
[425002111,1781405432000,-995.10349488,0.00018264,2]
[425002112,1781405432000,-328.1,0.0001841,2]
[425002115,1781405432000,-151.52879681,0.00018566,7]
[425002117,1781405432000,-350.0,0.00018765,2]
[425002119,1781405432000,-152.0,0.00019,2]
[425002120,1781405432000,-317.93420497,0.00019172,2]
[425002118,1781405432000,-1672.7364795,0.00018812,2]
[425002116,1781405432000,-314.48658955,0.00018566,7]
[425002122,1781405432000,-839.03339713,0.00019172,2]
[425002121,1781405432000,-560.87362351,0.00019172,2]
[425002124,1781405432000,-1734.62772924,0.0001936,2]
[425002126,1781405432000,-350.0,0.00019693,2]
[425002125,1781405432000,-1135.233,0.00019672,2]
[425002127,1781405432000,-1798.80895522,0.00019908,2]
[425002133,1781405432000,-153.0,0.0002,2]
[425002130,1781405432000,-212.0,0.0002,2]
[425002154,1781405432000,-292.0,0.00021,2]
[425002169,1781405432000,-150.0,0.00021702,2]
[425002152,1781405432000,-350.0,0.00020592,3]
[425002181,1781405432000,-405.40568573,0.00021726,2]
[425002185,1781405432000,-669.0,0.00021726,2]
[425002184,1781405432000,-669.0,0.00021726,2]
[425002187,1781405432000,-669.0,0.00021726,2]
[425002186,1781405432000,-669.0,0.00021726,2]
[425002188,1781405432000,-669.0,0.00021726,2]
[425002196,1781405432000,-669.0,0.00021726,2]
[425002194,1781405432000,-669.0,0.00021726,2]
[425002189,1781405432000,-669.0,0.00021726,2]
[425002200,1781405432000,-669.0,0.00021726,2]
[425002191,1781405432000,-669.0,0.00021726,2]
[425002190,1781405432000,-669.0,0.00021726,2]
[425002192,1781405432000,-669.0,0.00021726,2]
[425002199,1781405432000,-669.0,0.00021726,2]
[425002198,1781405432000,-669.0,0.00021726,2]
[425002193,1781405432000,-669.0,0.00021726,2]
[425002195,1781405432000,-669.0,0.00021726,2]
[425002197,1781405432000,-669.0,0.00021726,2]
[425002156,1781405432000,-153.0,0.00021,2]
[425002201,1781405432000,-669.0,0.00021726,2]
[425002203,1781405432000,-150.0,0.00021918,2]
[425002179,1781405432000,-669.0,0.00021726,2]
[425002182,1781405432000,-159.52304951,0.00021726,2]
[425002202,1781405432000,-687.62452677,0.00021726,2]
[425002180,1781405432000,-104.07126476,0.00021726,2]
[425002183,1781405432000,-669.0,0.00021726,2]
[425002159,1781405432000,-343.59959826,0.00021,2]
[425002157,1781405432000,-343.0,0.00021,2]
[425002160,1781405432000,-150.0,0.00021,2]
[425002161,1781405432000,-162.58,0.00021004,2]
[425002163,1781405432000,-166.66,0.00021107,2]
[425002162,1781405432000,-1934.38338736,0.00021004,2]
[425002165,1781405432000,-166.66,0.00021551,2]
[425002164,1781405432000,-350.0,0.00021463,3]
[425002166,1781405432000,-2005.9555727,0.00021552,2]
[425002168,1781405432000,-640.46803805,0.00021702,2]
[425002158,1781405432000,-29.40040174,0.00021,2]
[425002175,1781405432000,-318.39952194,0.00021726,2]
[425002171,1781405432000,-150.0,0.00021702,2]
[425002174,1781405432000,-206.38519936,0.00021702,2]
[425002167,1781405432000,-500.0,0.00021702,2]
[425002176,1781405432000,-350.60047806,0.00021726,2]
[425002178,1781405432000,-531.1163094,0.00021726,2]
[425002173,1781405432000,-150.0,0.00021702,2]
[425002177,1781405432000,-137.8836906,0.00021726,2]
[425002172,1781405432000,-150.0,0.00021702,2]
[425002170,1781405432000,-150.0,0.00021702,2]
[425002229,1781405433000,-500.0,0.000221,2]
[425002234,1781405433000,-151.0,0.000221,2]
[425002232,1781405433000,-500.0,0.000221,2]
[425002230,1781405433000,-151.0,0.000221,2]
[425002226,1781405433000,-151.0,0.000221,2]
[425002231,1781405433000,-151.0,0.000221,2]
[425002228,1781405433000,-2080.17592889,0.000221,2]
[425002233,1781405433000,-151.0,0.000221,2]
[425002244,1781405433000,-151.0,0.000221,2]
[425002247,1781405433000,-500.0,0.000221,2]
[425002237,1781405433000,-500.0,0.000221,2]
[425002235,1781405433000,-500.0,0.000221,2]
[425002246,1781405433000,-151.0,0.000221,2]
[425002239,1781405433000,-500.0,0.000221,2]
[425002238,1781405433000,-151.0,0.000221,2]
[425002240,1781405433000,-151.0,0.000221,2]
[425002245,1781405433000,-500.0,0.000221,2]
[425002227,1781405433000,-151.0,0.000221,2]
[425002236,1781405433000,-151.0,0.000221,2]
[425002222,1781405433000,-151.0,0.000221,2]
[425002213,1781405433000,-373.0,0.00022,2]
[425002223,1781405433000,-151.0,0.000221,2]
[425002242,1781405433000,-500.0,0.000221,2]
[425002212,1781405433000,-343.0,0.00022,2]
[425002204,1781405433000,-150.0,0.00021918,2]
[425002205,1781405433000,-206.0,0.00021976,2]
[425002208,1781405433000,-292.0,0.00022,2]
[425002207,1781405433000,-212.0,0.00022,2]
[425002206,1781405433000,-166.66,0.00021996,30]
[425002211,1781405433000,-600.01,0.00022,2]
[425002209,1781405433000,-153.0,0.00022,2]
[425002210,1781405433000,-166.62229823,0.00022,2]
[425002215,1781405433000,-200.0,0.000221,2]
[425002214,1781405433000,-151.0,0.000221,2]
[425002220,1781405433000,-151.0,0.000221,2]
[425002225,1781405433000,-500.0,0.000221,2]
[425002217,1781405433000,-151.0,0.000221,2]
[425002218,1781405433000,-151.0,0.000221,2]
[425002219,1781405433000,-151.0,0.000221,2]
[425002224,1781405433000,-151.0,0.000221,2]
[425002221,1781405433000,-151.0,0.000221,2]
[425002216,1781405433000,-151.0,0.000221,2]
[425002243,1781405433000,-500.0,0.000221,2]
[425002289,1781405433000,-500.0,0.00022894,2]
[425002248,1781405433000,-151.0,0.000221,2]
[425002269,1781405433000,-154.27646457,0.00022625,2]
[425002277,1781405433000,-500.0,0.00022894,2]
[425002274,1781405433000,-166.66,0.00022884,30]
[425002272,1781405433000,-2157.14243826,0.00022648,2]
[425002276,1781405433000,-500.0,0.00022894,2]
[425002271,1781405433000,-200.0,0.00022648,2]
[425002278,1781405433000,-500.0,0.00022894,2]
[425002281,1781405433000,-109.82512226,0.00022894,2]
[425002280,1781405433000,-592.41487774,0.00022894,2]
[425002283,1781405433000,-442.35296451,0.00022894,2]
[425002284,1781405433000,-259.88703549,0.00022894,2]
[425002282,1781405433000,-702.24,0.00022894,2]
[425002287,1781405433000,-315.84614791,0.00022894,2]
[425002286,1781405433000,-66.19097205,0.00022894,2]
[425002285,1781405433000,-433.80902795,0.00022894,2]
[425002290,1781405433000,-520.13359783,0.00022894,2]
[425002288,1781405433000,-197.75408179,0.00022894,2]
[425002291,1781405433000,-253.84969832,0.00022894,2]
[425002241,1781405433000,-181.43211455,0.000221,2]
[425002275,1781405433000,-500.0,0.00022894,2]
[425002279,1781405433000,-702.24,0.00022894,2]
[425002270,1781405433000,-285.61462453,0.00022625,2]
[425002263,1781405433000,-422.09,0.00022323,2]
[425002251,1781405433000,-151.0,0.000221,2]
[425002249,1781405433000,-512.01600473,0.000221,2]
[425002273,1781405433000,-412.0,0.00022669,2]
[425002253,1781405433000,-151.0,0.000221,2]
[425002257,1781405433000,-4684.01655608,0.00022215,2]
[425002254,1781405433000,-153.60555237,0.00022215,2]
[425002255,1781405433000,-151.85530607,0.00022215,2]
[425002252,1781405433000,-151.0,0.000221,2]
[425002256,1781405433000,-2274.59344392,0.00022215,2]
[425002265,1781405433000,-158.81664054,0.00022407,2]
[425002250,1781405433000,-151.0,0.000221,2]
[425002261,1781405433000,-200.0,0.00022304,2]
[425002258,1781405433000,-5000.0,0.00022223,2]
[425002268,1781405433000,-410.0,0.00022468,2]
[425002259,1781405433000,-234.25,0.00022258,2]
[425002262,1781405433000,-350.0,0.00022308,4]
[425002260,1781405433000,-176.5,0.00022301,2]
[425002266,1781405433000,-158.81664054,0.00022407,2]
[425002264,1781405433000,-328.1,0.00022353,2]
[425002267,1781405433000,-166.66,0.0002244,30]
[425002295,1781405437000,-407.86461,0.00022894,2]
[425002298,1781405440000,-476.36559008,0.00022894,2]
[425002297,1781405440000,-26.96569168,0.00022894,2]
[425002300,1781405440000,-688.68,0.00022894,2]
[425002299,1781405440000,-212.31440992,0.00022894,2]
[425002302,1781405440000,-578.53781818,0.00022894,2]
[425002301,1781405440000,-31.03598835,0.00022894,2]
[425002315,1781405443000,-15.90384209,0.00022894,2]
[425002314,1781405443000,-79.10619347,0.00022894,2]
[425002313,1781405443000,-505.0,0.00018,2]
[425002326,1781405447000,-484.09615791,0.00022894,2]
[425002327,1781405447000,-500.0,0.00022894,2]
[425002337,1781405447000,-153.0,0.00023,2]
[425002328,1781405447000,-526.30035307,0.00022894,2]
[425002330,1781405447000,-537.9608972,0.00022894,2]
[425002325,1781405447000,-202.76817535,0.00022407,2]
[425002336,1781405447000,-292.0,0.00023,2]
[425002329,1781405447000,-500.0,0.00022894,2]
[425002334,1781405447000,-980.587,0.0002292,7]
[425002332,1781405447000,-500.0,0.0002292,7]
[425002333,1781405447000,-500.0,0.0002292,7]
[425002335,1781405447000,-212.0,0.00023,2]
[425002339,1781405447000,-373.0,0.00023,2]
[425002341,1781405447000,-235.82563353,0.00023085,2]
[425002338,1781405447000,-343.0,0.00023,2]
[425002340,1781405447000,-150.0,0.00023014,2]
[425002331,1781405447000,-500.0,0.0002292,7]
[425002383,1781405448000,-150.0,0.00025669,2]
[425002373,1781405448000,-156.01674226,0.00024658,2]
[425002381,1781405448000,-150.0,0.00025373,2]
[425002380,1781405448000,-162.30643576,0.00025179,2]
[425002385,1781405448000,-749.0,0.00025965,2]
[425002378,1781405448000,-380.0,0.00025,2]
[425002375,1781405448000,-230.35345605,0.00025,2]
[425002374,1781405448000,-350.0,0.00024689,5]
[425002377,1781405448000,-357.0,0.00025,2]
[425002384,1781405448000,-162.3064358,0.00025727,2]
[425002376,1781405448000,-310.0,0.00025,2]
[425002379,1781405448000,-422.09,0.00025114,120]
[425002397,1781405448000,-500.0,0.00026822,2]
[425002387,1781405448000,-350.0,0.00026156,7]
[425002398,1781405448000,-350.0,0.00026856,8]
[425002372,1781405448000,-151.16240608,0.00024658,2]
[425002388,1781405448000,-328.1,0.00026296,2]
[425002386,1781405448000,-500.0,0.00026041,2]
[425002389,1781405448000,-152.0,0.00026378,3]
[425002400,1781405448000,-7835.02181234,0.00026913,2]
[425002401,1781405448000,-157.99,0.0002699,2]
[425002396,1781405448000,-8420.45,0.0002673,7]
[425002390,1781405448000,-152.0,0.00026378,3]
[425002394,1781405448000,-152.0,0.00026378,3]
[425002392,1781405448000,-152.0,0.00026378,3]
[425002395,1781405448000,-220.637198,0.0002646,14]
[425002382,1781405448000,-350.0,0.00025434,6]
[425002367,1781405448000,-162.30643576,0.00024631,2]
[425002369,1781405448000,-151.0,0.00024631,2]
[425002368,1781405448000,-522.66331112,0.00024631,2]
[425002393,1781405448000,-152.0,0.00026378,3]
[425002348,1781405448000,-200.0,0.00023744,2]
[425002347,1781405448000,-198.19031998,0.0002336,2]
[425002343,1781405448000,-200.0,0.00023196,2]
[425002346,1781405448000,-166.66,0.00023329,30]
[425002345,1781405448000,-150.0,0.00023288,2]
[425002342,1781405448000,-350.0,0.00023126,4]
[425002344,1781405448000,-379.96796041,0.00023196,2]
[425002350,1781405448000,-212.0,0.00024,2]
[425002360,1781405448000,-152.0,0.00024068,2]
[425002349,1781405448000,-350.0,0.0002392,5]
[425002352,1781405448000,-165.47182577,0.00024,2]
[425002355,1781405448000,-152.0,0.00024068,2]
[425002357,1781405448000,-152.0,0.00024068,2]
[425002356,1781405448000,-152.0,0.00024068,2]
[425002351,1781405448000,-292.0,0.00024,2]
[425002353,1781405448000,-343.0,0.00024,2]
[425002354,1781405448000,-373.0,0.00024,2]
[425002358,1781405448000,-152.0,0.00024068,2]
[425002359,1781405448000,-152.0,0.00024068,2]
[425002361,1781405448000,-152.0,0.00024068,2]
[425002362,1781405448000,-1301.79,0.00024136,2]
[425002363,1781405448000,-150.0,0.00024164,2]
[425002364,1781405448000,-207.50893317,0.00024292,2]
[425002365,1781405448000,-328.1,0.00024324,2]
[425002370,1781405448000,-196.94,0.00024658,2]
[425002366,1781405448000,-749.0,0.00024595,2]
[425002371,1781405448000,-1000.0,0.00024658,2]
[425002403,1781405448000,-494.23544433,0.00026999,2]
[425002418,1781405448000,-151.0,0.0002737,2]
[425002412,1781405448000,-500.4352328,0.00027296,2]
[425002437,1781405448000,-922.27,0.00027396,2]
[425002438,1781405448000,-922.27,0.00027396,2]
[425002441,1781405448000,-3000.0,0.00027397,3]
[425002440,1781405448000,-300.0,0.00027397,5]
[425002445,1781405448000,-500.0,0.00027397,2]
[425002446,1781405448000,-500.0,0.00027397,2]
[425002448,1781405448000,-500.0,0.00027397,2]
[425002449,1781405448000,-512.83996948,0.00027397,2]
[425002442,1781405448000,-500.0,0.00027397,2]
[425002443,1781405448000,-500.0,0.00027397,2]
[425002447,1781405448000,-500.0,0.00027397,2]
[425002444,1781405448000,-500.0,0.00027397,2]
[425002436,1781405448000,-320.9281724,0.00027396,10]
[425002450,1781405448000,-500.0,0.00027397,2]
[425002453,1781405448000,-500.0,0.00027397,2]
[425002454,1781405448000,-500.0,0.00027397,2]
[425002462,1781405448000,-619.06477671,0.00027397,2]
[425002452,1781405448000,-500.0,0.00027397,2]
[425002456,1781405448000,-500.0,0.00027397,2]
[425002460,1781405448000,-500.0,0.00027397,2]
[425002458,1781405448000,-500.0,0.00027397,2]
[425002459,1781405448000,-500.0,0.00027397,2]
[425002457,1781405448000,-500.0,0.00027397,2]
[425002461,1781405448000,-320.29270019,0.00027397,2]
[425002463,1781405448000,-645.91821424,0.00027397,2]
[425002405,1781405448000,-14699.34624264,0.00027,2]
[425002451,1781405448000,-500.0,0.00027397,2]
[425002435,1781405448000,-641.54189939,0.00027396,2]
[425002455,1781405448000,-500.0,0.00027397,2]
[425002432,1781405448000,-300.0,0.00027396,10]
[425002429,1781405448000,-1293.22227554,0.00027396,2]
[425002404,1781405448000,-106383.65375736,0.00027,2]
[425002413,1781405448000,-626.28713622,0.00027297,2]
[425002414,1781405448000,-2063.61814871,0.00027297,2]
[425002411,1781405448000,-506.57581316,0.00027296,2]
[425002409,1781405448000,-1301.79,0.00027153,2]
[425002406,1781405448000,-317.9342,0.00027012,2]
[425002408,1781405448000,-7835.02181231,0.00027047,2]
[425002410,1781405448000,-7835.02181231,0.00027181,2]
[425002416,1781405448000,-7835.02181231,0.00027315,2]
[425002424,1781405448000,-502.53821795,0.00027396,2]
[425002425,1781405448000,-500.0,0.00027396,2]
[425002426,1781405448000,-570.76511683,0.00027396,2]
[425002407,1781405448000,-2701.0902079,0.00027014,2]
[425002415,1781405448000,-10699.70081588,0.000273,2]
[425002439,1781405448000,-408.0,0.00027397,2]
[425002427,1781405448000,-1293.22227555,0.00027396,2]
[425002434,1781405448000,-501.79033579,0.00027396,2]
[425002430,1781405448000,-500.0,0.00027396,2]
[425002431,1781405448000,-507.61002056,0.00027396,2]
[425002421,1781405448000,-1714.284,0.00027387,16]
[425002433,1781405448000,-500.0,0.00027396,2]
[425002464,1781405448000,-175.31823239,0.00027397,2]
[425002417,1781405448000,-749.0,0.00027335,2]
[425002419,1781405448000,-200.0,0.00027381,2]
[425002422,1781405448000,-2063.61814864,0.00027388,2]
[425002423,1781405448000,-500.0,0.00027396,2]
[425002420,1781405448000,-157.495,0.00027387,16]
[425002488,1781405449000,-1155.44,0.00027397,2]
[425002489,1781405449000,-500.0,0.00027397,2]
[425002493,1781405449000,-764.99,0.00027397,2]
[425002487,1781405449000,-500.0,0.00027397,2]
[425002490,1781405449000,-500.0,0.00027397,2]
[425002496,1781405449000,-1555.25,0.00027397,2]
[425002491,1781405449000,-500.0,0.00027397,2]
[425002492,1781405449000,-500.0,0.00027397,2]